[Event "Polish Ekstraliga 2024"]
[Site "Walbrzych"]
[Date "2024.10.07"]
[Round "1.21"]
[White "Dzida, Kamil"]
[Black "Teclaf, Pawel"]
[Result "0-1"]
[ECO "A47"]
[WhiteElo "2384"]
[BlackElo "2552"]
[Annotator "TA"]
[PlyCount "86"]
[EventDate "2024.10.05"]
[EventType "team-tourn"]
[EventCountry "POL"]
[SourceTitle "playchess.com"]
[Source "ChessBase"]
[SourceQuality "1"]
[WhiteTeam "Gorzow Wlkp"]
[BlackTeam "Bydgoszcz"]
[TimeControl "40/5400+30:1800+30"]

{[%evp 9,86,13,22,10,18,1,3,16,8,0,16,10,10,0,14,-12,11,-6,0,0,0,0,-6,-30,-33,-44,-23,-31,-25,-23,-10,-26,-10,-19,-8,-15,-22,-39,-46,-68,-68,-70,-79,-72,-78,-134,-145,-150,-124,-206,-204,-195,-202,-436,-402,-434,-450,-421,-312,-235,-212,-289,-306,-370,-343,-373,-371,-635,-633,-695,-679,-29979,-29980,-29980,-29981,-29979,-29957,-29985,-6279]} 1. d4 {[%emt 0:00:02]} Nf6 {[%emt 0:00:04]} 2. Nf3 {[%emt 0:00:12]} b6 {[%emt 0:00:20]} 3. c4 {[%emt 0:00:32]} Bb7 {[%emt 0:00:05]} 4. g3 {[%emt 0:04:00]} g6 {[%emt 0:01:12]} 5. Bg2 {[%emt 0:00:29]} Bg7 {[%emt 0:00:08]} 6. Nc3 {[%emt 0:00:54]} Ne4 {[%emt 0:00:15]} 7. Bd2 {[%emt 0:10:54]} O-O {[%emt 0:08:23][%cal Og7d4]} 8. O-O {[%emt 0:04:03] Die Stellung ist ausgeglichen.} d6 {[%emt 0:06:17]} 9. Rc1 {[%emt 0:03:39]} e6 {[%emt 0:07:57]} 10. h4 {[%emt 0:10:18]} Nd7 {[%emt 0:02:29]} 11. Nxe4 {[%emt 0:10:19]} Bxe4 {[%emt 0:00:23]} 12. Bc3 {[%emt 0:00:05]} Nf6 {[%emt 0:04:56]} 13. Qb3 {[%emt 0:08:01]} a6 {[%emt 0:07:27]} 14. Rfd1 {[%emt 0:02:39]} Qb8 {[%emt 0:08:35]} 15. d5 {[%emt 0:06:07]} e5 {[%emt 0:02:00]} 16. Be1 {[%emt 0:03:39][%cal Bc3e1,Be1f2,Bf2d4][%mdl 32]} Bf5 {[%emt 0:07:20]} 17. Nd2 {[%emt 0:01:14]} Bg4 {[%emt 0:04:13]} 18. f3 {[%emt 0:09:22]} Bd7 {[%emt 0:00:17]} 19. Bf2 {[%emt 0:02:41]} Qe8 {[%emt 0:08:58]} 20. Qc2 {[%emt 0:04:25]} Bh6 {[%emt 0:00:43][%cal Oe5e4]} 21. g4 {[%emt 0:03:05] [#] g5 wäre nun fies.} (21. e3 {vereinfacht} e4 22. Nxe4 Nxe4 23. Qxe4 Qxe4 24. fxe4 Rfe8 25. b3) 21... e4 $1 {[%emt 0:05:01] Und ...e3 würde nun gewinnen.} 22. Nf1 {[%emt 0:07:52] Droht stark g5.} (22. Bg3 Qe7) 22... Bf4 {[%emt 0:08:41]} 23. Bd4 {[%emt 0:01:33]} Qe7 {[%emt 0:00:01]} 24. Qc3 {[%emt 0:01:47]} Ne8 {[%emt 0:00:18]} 25. e3 {[%emt 0:01:11]} Be5 {[%emt 0:02:45] Schwarz bringt die Sache ungefährdet zu Ende.} 26. Bxe5 {[%emt 0:02:35]} dxe5 {[%emt 0:00:05]} 27. Nd2 {[%emt 0:00:44]} (27. Qe1 $142) 27... exf3 $17 {[%emt 0:02:31]} (27... Qxh4 $6 28. Qxe5 (28. Nxe4 f5 $11) 28... exf3 29. Nxf3 $11) 28. Bxf3 {[%emt 0:01:34]} Nd6 {[%emt 0:00:16][%cal Oa8e8]} (28... Qxh4 29. Qxe5 Bxg4 30. Qf4 $15) 29. Rf1 {[%emt 0:00:31]} (29. e4 $17) 29... Qxh4 $19 {[%emt 0:03:22]} 30. Qxe5 {[%emt 0:00:12]} f5 {[%emt 0:02:45]} (30... Bxg4 31. Qf4 h5 32. b4 $17) 31. c5 $2 {[%emt 0:00:40]} (31. g5 {ist eine bessere Verteidigung.} Qxg5+ 32. Bg2) 31... fxg4 {[%emt 0:02:23][%cal Og4g3] Weiss muss nun ...g3! beachten.} 32. Bg2 {[%emt 0:00:01]} bxc5 {[%emt 0:01:54]} 33. Rxc5 {[%emt 0:00:19]} Rxf1+ {[%emt 0:01:43]} 34. Nxf1 {[%emt 0:00:10]} Re8 {[%emt 0:00:08]} 35. Qh2 {[%emt 0:01:24]} Qd8 {[%emt 0:01:52]} 36. e4 {[%emt 0:00:32]} Nxe4 {[%emt 0:01:18]} 37. Bxe4 {[%emt 0:00:05]} Rxe4 {[%emt 0:00:01]} 38. Rxc7 $2 {[%emt 0:01:08] [#]} (38. Qxc7 Qf6 39. Rc2 Qd4+ 40. Rf2) 38... g3 $1 {[%emt 0:00:45][%mdl 512]} 39. Qc2 {[%emt 0:00:01] Droht Rxd7 und aus.} (39. Nxg3 Qg5) 39... Re1 {[%emt 0:00:47]} 40. Qc3 {[%emt 0:00:00] [#] Verhindert Qf8.} Rxf1+ {[%emt 0:00:00][%mdl 512] Schwarz setzt Matt.} 41. Kxf1 {[%emt 0:06:00]} Qf8+ {[%emt 0:01:36]} 42. Ke2 {[%emt 0:00:05]} g2 {[%emt 0:01:01]} 43. Qe1 {[%emt 0:02:02] [#]} Qf1+ {[%emt 0:00:11] Gewichteter Fehlerwert: Weiß=0.57/Schwarz=0.11 (sehr präzise) .  Fehler:       	Weiß=4     	---        Ungenau:       	Weiß=2     	---        OK:         	Weiß=5     	Schwarz=15    Bester:       	Weiß=1     	Schwarz=1     Brilliant:      	---       	Schwarz=1} 0-1

[Event "Polish Ekstraliga 2024"]
[Site "Walbrzych"]
[Date "2024.10.07"]
[Round "1.22"]
[White "Nasuta, Grzegorz"]
[Black "Koziorowicz, Michal"]
[Result "1/2-1/2"]
[ECO "C16"]
[WhiteElo "2545"]
[BlackElo "2289"]
[Annotator "TA"]
[PlyCount "89"]
[EventDate "2024.10.05"]
[EventType "team-tourn"]
[EventCountry "POL"]
[SourceTitle "playchess.com"]
[Source "ChessBase"]
[SourceQuality "1"]
[WhiteTeam "Bydgoszcz"]
[BlackTeam "Gorzow Wlkp"]
[TimeControl "40/5400+30:1800+30"]

{[%evp 13,89,-3,28,24,33,27,33,34,23,28,32,22,18,11,20,15,9,0,45,36,51,36,48,34,34,45,37,37,43,25,14,0,0,0,0,0,0,0,0,0,0,0,0,0,19,10,23,16,20,29,31,0,44,4,14,0,49,68,117,59,50,0,110,118,113,122,130,113,188,140,130,102,130,90,93,60,91,65]} 1. e4 {[%emt 0:00:02]} e6 {[%emt 0:00:12]} 2. d4 {[%emt 0:00:08]} d5 3. Nc3 {[%emt 0:00:16]} Bb4 {[%emt 0:00:28]} 4. e5 {[%emt 0:00:16]} Ne7 5. Bd2 {[%emt 0:00:35]} c5 {[%emt 0:01:19]} 6. a3 {[%emt 0:00:17]} Bxc3 {[%emt 0:02:39]} 7. Bxc3 {[%emt 0:00:25]} cxd4 {[%emt 0:02:57]} 8. Qxd4 {[%emt 0:01:22]} O-O {[%emt 0:03:58] Black is weak on the dark squares} 9. Nf3 {[%emt 0:04:33]} b6 {[%emt 0:15:19]} 10. Bd3 {[%emt 0:10:45][%cal Od3h7] And now Bxh7+! would win. White is slightly better.} h6 {[%emt 0:01:37]} 11. b4 {[%emt 0:01:57][%cal Bb2b4,Bb4b5][%mdl 32]} (11. Bb4 {looks sharper.} Ba6 12. Qh4 Re8 13. Bxe7 Rxe7 14. Nd4) 11... Qc7 {[%emt 0:13:13]} 12. Bb2 {[%emt 0:31:02]} Ba6 {[%emt 0:12:41]} 13. b5 {[%emt 0:08:44] Against Nbc6} Bb7 {[%emt 0:00:04]} 14. a4 {[%emt 0:06:39][%cal Ba3a4,Ba4a5,Ba5a6][%mdl 32]} Nd7 {[%emt 0:00:42]} 15. a5 {[%emt 0:01:35]} Nc5 {[%emt 0:04:00]} 16. a6 Bc8 {[%emt 0:00:27]} 17. Be2 {[%emt 0:05:36]} Bd7 {[%emt 0:06:02]} 18. O-O {[%emt 0:00:27]} Rac8 {[%emt 0:01:23]} 19. Rac1 {[%emt 0:00:13]} Rfd8 {[%emt 0:04:21]} 20. Qb4 {[%emt 0:06:08]} Be8 {[%emt 0:01:26]} 21. h3 {[%emt 0:15:43]} Ne4 {[%emt 0:06:44][%cal Od5d4]} 22. Bd3 {[%emt 0:00:13][%cal Ob2a3]} Qc5 {[%emt 0:02:45]} 23. Qb3 {[%emt 0:01:06]} Ng6 {[%emt 0:03:48]} 24. Bd4 {[%emt 0:03:44]} Qe7 {[%emt 0:00:35]} 25. Rfe1 {[%emt 0:00:25][%cal Ob3b2]} Nc5 {[%emt 0:05:09]} 26. Bxc5 {[%emt 0:00:03]} Qxc5 {[%emt 0:00:38]} 27. c3 {[%emt 0:00:05]} Nf4 {[%emt 0:01:24]} 28. Bf1 {[%emt 0:00:08]} Rc7 {[%emt 0:00:31]} 29. Nd4 {[%emt 0:00:57]} Rdc8 {[%emt 0:00:45]} 30. Re3 {[%emt 0:00:52]} Qe7 {[%emt 0:02:15]} 31. g3 {[%emt 0:00:54]} Ng6 {[%emt 0:00:29]} 32. f4 {[%emt 0:00:29]} Rc5 {[%emt 0:02:10]} 33. Qb2 {[%emt 0:00:26]} Bd7 {[%emt 0:01:22]} 34. Qb4 {[%emt 0:00:45]} f6 {[%emt 0:02:27]} (34... Qd8 $11 {is more appropriate.}) 35. exf6 {[%emt 0:00:34]} gxf6 {[%emt 0:00:39] [#]} (35... Qxf6 $14 {is superior.} 36. Rce1 Ne7) 36. Nxe6 $1 {[%emt 0:00:02][%mdl 512] White is much more active.} Bxe6 {[%emt 0:00:51]} (36... d4 37. Qxd4) 37. Rce1 {[%emt 0:00:05]} (37. f5 $14 Ne5 38. fxe6) 37... Rxc3 {[%emt 0:00:04]} 38. Qxe7 $16 {[%emt 0:00:30]} Nxe7 {[%emt 0:00:30]} 39. Rxe6 {[%emt 0:00:00]} Nf5 {[%emt 0:00:38]} (39... Rxg3+ $2 40. Kf2 Nf5 41. Rxf6 $18) 40. Rxf6 {[%emt 0:00:00]} Nxg3 {[%emt 0:00:00]} (40... Nd4 $16 41. Bg2 (41. Rxh6 $2 {perishes.} Nf3+ 42. Kf2 Nxe1 $19) 41... Rxg3) 41. Bg2 {[%emt 0:02:48]} ({Don't take} 41. Rxh6 $6 Nxf1 42. Rxf1 (42. Kxf1 R8c4 $18) 42... Kg7 $14) (41. Re7 $18 Nxf1 42. Kxf1 Rc1+ 43. Kf2) 41... Ne4 {[%emt 0:02:15]} 42. Rxh6 {[%emt 0:00:30]} Rc2 {[%emt 0:00:30]} 43. Bxe4 {[%emt 0:00:30]} dxe4 {[%emt 0:00:30]} 44. Rxe4 {[%emt 0:00:30] Threatens to win with Ree6.} Rb2 $1 {[%emt 0:00:30]} 45. Rc6 {[%emt 0:00:30] Weighted Error Value: White=0.12 (very precise) /Black=0.15 (very precise) .  Mistake:       	White=3     	Black=4      Inaccurate:     	White=4     	Black=2      OK:         	White=12    	Black=15     Best:        	White=2     	---        Strong:       	---       	Black=1} 1/2-1/2

[Event "Polish Ekstraliga 2024"]
[Site "Walbrzych"]
[Date "2024.10.07"]
[Round "1.23"]
[White "Rog, Bartlomiej"]
[Black "Kazakouski, Valery"]
[Result "0-1"]
[ECO "B10"]
[WhiteElo "2257"]
[BlackElo "2557"]
[Annotator "TA"]
[PlyCount "88"]
[EventDate "2024.10.05"]
[EventType "team-tourn"]
[EventCountry "POL"]
[SourceTitle "playchess.com"]
[Source "ChessBase"]
[SourceQuality "1"]
[WhiteTeam "Gorzow Wlkp"]
[BlackTeam "Bydgoszcz"]
[TimeControl "40/5400+30:1800+30"]

{[%evp 11,86,7,6,8,27,25,27,0,23,30,35,20,20,-31,-21,-21,20,12,25,-24,-17,-26,-11,-75,-42,-65,-60,-56,-60,-85,-60,-75,-61,-96,-60,-89,-83,-107,-107,-129,-105,-129,-116,-129,-135,-163,-115,-191,-197,-404,-416,-410,-147,-145,-135,-127,-154,-153,-87,-89,-102,-110,-35,-230,-222,-243,-239,-249,-259,-376,-366,-392,-368,-439,-388,-527,-494]} 1. e4 {[%emt 0:00:03]} c6 {[%emt 0:00:10]} 2. Nf3 {[%emt 0:00:10]} d5 {[%emt 0:00:05]} 3. d3 {[%emt 0:00:04]} Bg4 {[%emt 0:00:08]} 4. h3 {[%emt 0:00:33]} Bxf3 {[%emt 0:00:06]} 5. Qxf3 {[%emt 0:00:11]} e6 {[%emt 0:00:04][%cal Be7e6,Be6e5][%mdl 32]} 6. Nc3 {[%emt 0:03:33]} Nd7 {[%emt 0:01:47]} 7. Qg3 {[%emt 0:04:16]} Ngf6 {[%emt 0:17:03]} 8. Be2 {[%emt 0:00:14]} h5 {[%emt 0:06:05]} 9. h4 {[%emt 0:02:36] White has an edge.} Qb8 {[%emt 0:05:59]} 10. Bf4 {[%emt 0:06:18]} e5 {[%emt 0:00:07]} 11. Bg5 {[%emt 0:04:27]} d4 {[%emt 0:01:06]} 12. Nd1 {[%emt 0:00:11]} ({Better is} 12. Nb1 $11) 12... Nc5 $15 {[%emt 0:03:23]} 13. f4 {[%emt 0:07:23]} Bd6 {[%emt 0:09:17]} 14. f5 {[%emt 0:03:37]} Qc7 {[%emt 0:00:24]} 15. Bd2 {[%emt 0:01:45]} (15. O-O $142) 15... O-O-O $11 {[%emt 0:02:24][%cal Of6e4]} 16. Nf2 {[%emt 0:11:47]} Rdg8 {[%emt 0:06:24]} 17. Bf3 {[%emt 0:10:11]} (17. O-O $11) 17... Qb6 {[%emt 0:01:16]} 18. b3 {[%emt 0:00:18]} Ncd7 {[%emt 0:01:20]} 19. a3 {[%emt 0:00:22][%cal Ba2a3,Ba3a4][%mdl 32]} Qd8 {[%emt 0:02:19]} 20. Ke2 {[%emt 0:00:33]} Ne8 {[%emt 0:01:00]} 21. b4 {[%emt 0:08:46]} Kb8 {[%emt 0:05:45]} 22. a4 {[%emt 0:03:24]} Nc7 {[%emt 0:00:40]} 23. Rab1 {[%emt 0:01:50]} Nb6 {[%emt 0:03:16]} 24. b5 {[%emt 0:02:05]} cxb5 {[%emt 0:01:49]} 25. axb5 {[%emt 0:00:10]} Qd7 {[%emt 0:00:16]} 26. Rb3 {[%emt 0:02:21]} ({Avoid the trap} 26. c4 $2 dxc3 27. Bxc3 f6 $19 (27... Nxb5 28. Bxe5 $15)) 26... Nxb5 {[%emt 0:01:04]} 27. Rhb1 {[%emt 0:03:06] [#]} a6 {[%emt 0:00:28]} 28. Nd1 {[%emt 0:00:45]} f6 {[%emt 0:05:55]} (28... Na4 $19 29. Kf1 g6) 29. Nb2 {[%emt 0:00:28]} (29. R3b2 $17) 29... Rc8 $19 {[%emt 0:00:21]} 30. Ba5 $2 {[%emt 0:04:48]} (30. Kd1) 30... Rxc2+ {[%emt 0:02:55]} 31. Kf1 {[%emt 0:01:40]} Bc7 {[%emt 0:07:22]} (31... Qf7 $19 32. Nc4 (32. Rxb5 $2 axb5 33. Bxb6 Qa2 $19) 32... Nxc4 33. dxc4 Qxc4+ 34. Kg1 d3) 32. Bd1 $17 {[%emt 0:01:19]} Rc6 {[%emt 0:00:40]} 33. Bxb6 {[%emt 0:00:50]} Bxb6 {[%emt 0:01:30]} 34. Nc4 {[%emt 0:00:06]} Ba7 {[%emt 0:02:16]} (34... Rhc8 $142 35. Qf3 Ba7) 35. R3b2 {[%emt 0:00:20]} Qc7 {[%emt 0:01:03]} 36. Kg1 {[%emt 0:02:40]} b6 {[%emt 0:06:20]} (36... Rxc4 $17 37. dxc4 Nd6 (37... Qxc4 38. Kh2 $15)) 37. Ba4 $2 {[%emt 0:03:09] Now White is beyond hope.} (37. Rxb5 $1 $15 axb5 38. Rxb5) 37... Rxc4 $1 $19 {[%emt 0:00:08]} 38. dxc4 {[%emt 0:00:43]} Nc3 {[%emt 0:00:03]} 39. Ra1 {[%emt 0:00:27]} Nxe4 {[%emt 0:01:41]} 40. Qe1 {[%emt 0:00:00]} (40. Qf3 $142 Nc5 41. Bc6) 40... Nc5 {[%emt 0:00:00]} 41. Bd1 {[%emt 0:07:03]} e4 {[%emt 0:04:37] Wards off Bf3} 42. Ra3 {[%emt 0:01:46]} Kb7 {[%emt 0:02:50]} 43. Ra5 {[%emt 0:02:33][%cal Oa5c5]} Re8 {[%emt 0:01:12] [#] Hoping for ...Nd3.} 44. Qd2 {[%emt 0:04:55]} Bb8 {[%emt 0:02:04] Weighted Error Value: White=0.37/Black=0.23 (precise) .  Loses game:     	White=1     	---        Missed win:     	---       	Black=1      Mistake:       	White=6     	Black=3      Inaccurate:     	White=4     	Black=3      OK:         	White=8     	Black=15     Best:        	White=3     	Black=3      Strong:       	---       	Black=1} 0-1

[Event "Polish Ekstraliga 2024"]
[Site "Walbrzych"]
[Date "2024.10.07"]
[Round "1.24"]
[White "Kiolbasa, Oliwia"]
[Black "Siekanska, Maria"]
[Result "1-0"]
[ECO "E46"]
[WhiteElo "2351"]
[BlackElo "2149"]
[Annotator "RC"]
[PlyCount "91"]
[EventDate "2024.10.05"]
[EventType "team-tourn"]
[EventCountry "POL"]
[SourceTitle "playchess.com"]
[Source "ChessBase"]
[SourceQuality "1"]
[WhiteTeam "Bydgoszcz"]
[BlackTeam "Gorzow Wlkp"]
[TimeControl "40/5400+30:1800+30"]

1. d4 {[%emt 0:00:04]} Nf6 {[%emt 0:00:05]} 2. c4 {[%emt 0:00:08]} e6 {[%emt 0:00:03]} 3. Nc3 {[%emt 0:00:12]} Bb4 {[%emt 0:00:06]} 4. e3 {[%emt 0:00:22]} O-O {[%emt 0:00:10]} 5. Nge2 {[%emt 0:00:20]} Re8 {[%emt 0:00:30]} 6. a3 {[%emt 0:00:34]} Bf8 {[%emt 0:00:08]} 7. e4 {[%emt 0:00:36]} d5 {[%emt 0:01:34]} 8. e5 {[%emt 0:01:19]} Nfd7 {[%emt 0:00:18]} 9. h4 {[%emt 0:00:23]} c5 {[%emt 0:07:51]} 10. Bg5 {[%emt 0:00:20]} f6 {[%emt 0:05:38]} 11. exf6 {[%emt 0:00:16]} gxf6 {[%emt 0:02:07]} 12. Bd2 {[%emt 0:00:23]} Nc6 {[%emt 0:02:50]} 13. dxc5 {[%emt 0:02:03]} Nxc5 {[%emt 0:03:30]} 14. Be3 {[%emt 0:02:38]} dxc4 {[%emt 0:03:49]} 15. Nf4 {[%emt 0:00:27]} Ne5 {[%emt 0:02:40]} 16. Rh3 {[%emt 0:01:24]} Qxd1+ {[%emt 0:20:27]} 17. Rxd1 {[%emt 0:00:09]} Ncd3+ {[%emt 0:06:56]} 18. Nxd3 {[%emt 0:10:51]} Nxd3+ {[%emt 0:00:13]} 19. Bxd3 {[%emt 0:00:12]} cxd3 {[%emt 0:00:04]} 20. Nb5 {[%emt 0:10:36]} Re7 {[%emt 0:04:47]} 21. Rg3+ {[%emt 0:04:49]} Kh8 {[%emt 0:03:05]} 22. Bc5 {[%emt 0:11:24]} Rf7 {[%emt 0:01:15]} 23. Bxf8 {[%emt 0:02:19]} Rxf8 {[%emt 0:00:06]} 24. Rdxd3 {[%emt 0:00:20]} b6 {[%emt 0:06:55]} 25. Rc3 {[%emt 0:01:40]} e5 {[%emt 0:08:40]} 26. Nd6 {[%emt 0:17:27]} Be6 {[%emt 0:02:26]} 27. Rc7 {[%emt 0:00:16]} Rg8 {[%emt 0:02:29]} 28. Re7 {[%emt 0:07:15]} Rxg3 {[%emt 0:00:40]} 29. fxg3 {[%emt 0:00:08]} Bd5 {[%emt 0:01:52]} 30. Ne8 {[%emt 0:00:21]} Bf7 {[%emt 0:06:55]} 31. Nxf6 {[%emt 0:03:02]} Kg7 {[%emt 0:00:13]} 32. Nxh7 {[%emt 0:06:28]} Kxh7 {[%emt 0:01:19]} 33. Rxf7+ {[%emt 0:00:08]} Kg6 {[%emt 0:00:02]} 34. Rc7 {[%emt 0:00:51]} Kf5 {[%emt 0:00:48]} 35. Ke2 {[%emt 0:05:24]} a5 {[%emt 0:02:48]} 36. Rf7+ {[%emt 0:06:38]} Ke4 {[%emt 0:00:57]} 37. h5 {[%emt 0:00:31]} Rh8 {[%emt 0:02:46]} 38. g4 {[%emt 0:00:16]} Rg8 {[%emt 0:00:54]} 39. h6 {[%emt 0:02:26]} Rxg4 {[%emt 0:00:09]} 40. h7 {[%emt 0:00:00]} Rh4 {[%emt 0:00:00]} 41. g4 {[%emt 0:07:03]} Rh2+ {[%emt 0:00:50]} 42. Kf1 {[%emt 0:00:08]} Kd3 {[%emt 0:03:05]} 43. g5 {[%emt 0:00:32]} e4 {[%emt 0:00:24]} 44. Rd7+ {[%emt 0:04:26]} Kc2 {[%emt 0:01:16]} 45. g6 {[%emt 0:00:24]} e3 {[%emt 0:00:38]} 46. Rd8 {[%emt 0:00:38]} 1-0

[Event "Polish Ekstraliga 2024"]
[Site "Walbrzych"]
[Date "2024.10.07"]
[Round "1.25"]
[White "Sowinski, Pawel"]
[Black "Erdogmus, Yagiz Kaan"]
[Result "0-1"]
[ECO "A05"]
[WhiteElo "2455"]
[BlackElo "2601"]
[Annotator "RC"]
[PlyCount "123"]
[EventDate "2024.10.05"]
[EventType "team-tourn"]
[EventCountry "POL"]
[SourceTitle "playchess.com"]
[Source "ChessBase"]
[SourceQuality "1"]
[WhiteTeam "Sedziszow Malopolski"]
[BlackTeam "Legnica"]
[TimeControl "40/5400+30:1800+30"]

1. Nf3 {[%emt 0:00:04]} d5 {[%emt 0:00:07]} 2. g3 {[%emt 0:00:05]} Nf6 {[%emt 0:00:03]} 3. Bg2 {[%emt 0:00:05]} e6 {[%emt 0:00:04]} 4. O-O {[%emt 0:00:07]} Be7 {[%emt 0:00:05]} 5. d4 {[%emt 0:00:13]} O-O {[%emt 0:00:06]} 6. c4 {[%emt 0:00:02]} c6 {[%emt 0:00:21]} 7. Qc2 {[%emt 0:00:05]} b6 {[%emt 0:01:22]} 8. Rd1 {[%emt 0:00:57]} Nbd7 {[%emt 0:14:42]} 9. b3 {[%emt 0:01:29]} Ba6 {[%emt 0:01:08]} 10. Nbd2 {[%emt 0:00:52]} Rc8 {[%emt 0:05:49]} 11. e4 {[%emt 0:00:10]} c5 {[%emt 0:05:37]} 12. exd5 {[%emt 0:00:03]} exd5 {[%emt 0:00:05]} 13. Nf1 {[%emt 0:00:11]} dxc4 {[%emt 0:21:11]} 14. d5 {[%emt 0:00:03]} Ne8 {[%emt 0:00:10]} 15. bxc4 {[%emt 0:11:36]} Nd6 {[%emt 0:00:04]} 16. Ne3 {[%emt 0:10:57]} f5 {[%emt 0:02:06]} 17. Qa4 {[%emt 0:08:37]} Bb7 {[%emt 0:01:53]} 18. Bb2 {[%emt 0:04:30]} a6 {[%emt 0:05:47]} 19. Ne5 {[%emt 0:03:24]} b5 {[%emt 0:04:03]} 20. Qc2 {[%emt 0:06:58]} Nxe5 {[%emt 0:01:24]} 21. Bxe5 {[%emt 0:00:02]} Bf6 {[%emt 0:02:36]} 22. Bxd6 {[%emt 0:36:01]} Qxd6 {[%emt 0:00:43]} 23. Nxf5 {[%emt 0:01:13]} Qd7 {[%emt 0:00:34]} 24. Rab1 {[%emt 0:01:19]} g6 {[%emt 0:02:35]} 25. Ne3 {[%emt 0:00:13]} b4 {[%emt 0:10:04]} 26. Rd3 {[%emt 0:05:54]} Bd4 {[%emt 0:00:50]} 27. Qd2 {[%emt 0:00:37]} Qg7 {[%emt 0:07:54]} 28. Rf1 {[%emt 0:05:51]} Rce8 {[%emt 0:00:49]} 29. Nc2 {[%emt 0:00:59]} Bc3 {[%emt 0:00:26]} 30. Qd1 {[%emt 0:00:01]} Qf7 {[%emt 0:02:47]} 31. Ne3 {[%emt 0:00:22]} Rd8 {[%emt 0:03:18]} 32. f4 {[%emt 0:00:45]} Rd6 {[%emt 0:02:24]} 33. Kh1 {[%emt 0:00:07]} Bc8 {[%emt 0:00:29]} 34. Ng4 {[%emt 0:00:54]} Qg7 {[%emt 0:00:54]} 35. Ne5 {[%emt 0:02:10]} Re8 {[%emt 0:03:08]} 36. Rxc3 {[%emt 0:00:56]} bxc3 {[%emt 0:00:01]} 37. Qe1 {[%emt 0:00:19]} c2 {[%emt 0:02:11]} 38. Qd2 {[%emt 0:00:01]} Bf5 {[%emt 0:00:37]} 39. g4 {[%emt 0:00:01]} Bc8 {[%emt 0:00:33]} 40. Qxc2 {[%emt 0:00:00]} g5 {[%emt 0:00:00]} 41. Nd3 {[%emt 0:08:01]} Bxg4 {[%emt 0:07:36]} 42. fxg5 {[%emt 0:11:13]} Qxg5 {[%emt 0:12:00]} 43. Qf2 {[%emt 0:01:58]} Rdd8 {[%emt 0:11:48]} 44. h3 {[%emt 0:05:05]} Bh5 {[%emt 0:01:31]} 45. Nxc5 {[%emt 0:04:16]} Re2 {[%emt 0:00:16]} 46. Qg1 {[%emt 0:00:01]} Qg3 {[%emt 0:00:46]} 47. d6 {[%emt 0:03:45]} Kh8 {[%emt 0:00:30]} 48. Qd4+ {[%emt 0:00:42]} Qg7 {[%emt 0:00:24]} 49. Qxg7+ {[%emt 0:00:40]} Kxg7 {[%emt 0:00:00]} 50. Nb7 {[%emt 0:00:01]} Rb8 {[%emt 0:00:15]} 51. c5 {[%emt 0:00:13]} Be8 {[%emt 0:00:38]} 52. Bf3 {[%emt 0:01:14]} Rc2 {[%emt 0:00:11]} 53. Re1 {[%emt 0:00:17]} Kf6 {[%emt 0:00:43]} 54. Re7 {[%emt 0:00:46]} Ba4 {[%emt 0:00:18]} 55. Re1 {[%emt 0:00:28]} Rc3 {[%emt 0:00:18]} 56. Bg2 {[%emt 0:00:12]} Bd7 57. Re7 {[%emt 0:00:41]} Rc1+ {[%emt 0:00:31]} 58. Kh2 {[%emt 0:00:03]} Rc2 {[%emt 0:00:16]} 59. Kh1 {[%emt 0:01:27]} Rxg2 {[%emt 0:00:32]} 60. Rxd7 {[%emt 0:00:40]} Rb2 {[%emt 0:01:00]} 61. Nd8 {[%emt 0:00:31]} Rc2 {[%emt 0:00:48]} 62. c6 0-1